[Event "Germany Countries-chT Youth 2022"]
[Site "Wiesbaden"]
[Date "2022.10.03"]
[Round "5"]
[White "Rafikova, Ailin"]
[Black "Kutz, Ida Klara"]
[Result "1/2-1/2"]
[ECO "B07"]
[WhiteElo "1287"]
[BlackElo "1411"]
[Annotator "NA RC COMBH"]
[PlyCount "73"]
[EventDate "2022.09.28"]
[EventType "team-tourn"]
[EventRounds "7"]
[EventCountry "GER"]
[SourceTitle "playchess.com"]
[Source "ChessBase"]
[SourceQuality "1"]
[TimeControl "40/5400+30:1800+30"]

1. e4 {[%emt 0:00:09]} d6 {[%emt 0:00:08]} 2. d4 {[%emt 0:00:04]} Nf6 {[%emt 0:00:13]} 3. Nc3 {[%emt 0:00:13]} g6 {[%emt 0:00:17]} 4. Be3 {[%emt 0:00:17]} a6 {[%emt 0:00:17]} 5. Bc4 {[%emt 0:01:48]} b5 {[%emt 0:02:51]} 6. Bd3 {[%emt 0:03:28]} Nbd7 {[%emt 0:03:07]} 7. f3 {[%emt 0:03:28]} Nb6 {[%emt 0:02:11]} 8. Nge2 {[%emt 0:04:09]} Nc4 {[%emt 0:01:51]} 9. Bxc4 $11 {[%emt 0:05:01]} bxc4 {[%emt 0:00:57]} 10. Qd2 {[%emt 0:02:37]} Rb8 {[%emt 0:01:25]} 11. Rb1 {[%emt 0:04:34]} Bd7 {[%emt 0:02:29]} 12. Bh6 {[%emt 0:04:56]} Bxh6 {[%emt 0:04:47]} 13. Qxh6 {[%emt 0:01:39]} e6 {[%emt 0:01:40]} 14. e5 {[%emt 0:04:06]} dxe5 {[%emt 0:04:15]} 15. dxe5 {[%emt 0:00:32]} Nd5 {[%emt 0:01:13]} 16. Qg7 {[%emt 0:03:49]} Rf8 {[%emt 0:00:27]} 17. Ne4 {[%emt 0:04:43]} Rb6 {[%emt 0:03:56]} 18. Qxh7 {[%emt 0:04:17]} Qe7 {[%emt 0:05:23]} 19. Kf2 {[%emt 0:03:48]} Kd8 {[%emt 0:01:16]} 20. Rhd1 {[%emt 0:02:35]} Qe8 {[%emt 0:07:52]} 21. Qh4+ {[%emt 0:04:14]} Kc8 {[%emt 0:07:28]} 22. N2c3 {[%emt 0:04:07]} Rh8 {[%emt 0:03:14]} 23. Qg3 {[%emt 0:01:31]} Nxc3 {[%emt 0:01:54]} 24. bxc3 {[%emt 0:02:44]} Qe7 {[%emt 0:01:28]} 25. Nf6 {[%emt 0:05:41]} Bb5 {[%emt 0:02:34]} 26. Qf4 {[%emt 0:04:24]} Qc5+ {[%emt 0:03:18]} 27. Kf1 {[%emt 0:03:16]} Ba4 {[%emt 0:02:52]} 28. Qe4 {[%emt 0:03:15]} Qc6 {[%emt 0:01:13]} 29. Qxc6 {[%emt 0:02:00]} Rxc6 {[%emt 0:00:46]} 30. Rd2 {[%emt 0:01:51]} Rxh2 {[%emt 0:00:49]} 31. Kg1 {[%emt 0:00:32]} Rh8 {[%emt 0:02:38]} 32. Rbd1 {[%emt 0:01:21]} Kb7 {[%emt 0:03:54]} 33. Rd7 {[%emt 0:02:47]} Bxc2 {[%emt 0:01:23]} 34. R1d2 {[%emt 0:01:04]} Bd3 {[%emt 0:01:05]} 35. Rxf7 {[%emt 0:01:52]} Rc5 {[%emt 0:03:51]} 36. f4 {[%emt 0:02:29]} Rb5 {[%emt 0:01:39]} 37. Kf2 {[%emt 0:02:30]} 1/2-1/2

[Event "Germany Countries-chT Youth 2022"]
[Site "Wiesbaden"]
[Date "2022.10.03"]
[Round "5"]
[White "Gavrylyuk, Oleksandr"]
[Black "Ulrich, Helena Irene"]
[Result "0-1"]
[ECO "B90"]
[WhiteElo "1263"]
[BlackElo "1573"]
[Annotator "COMBH"]
[PlyCount "96"]
[EventDate "2022.09.28"]
[EventType "team-tourn"]
[EventRounds "7"]
[EventCountry "GER"]
[TimeControl "40/5400+30:1800+30"]

1. e4 {[%emt 0:00:03]} c5 {[%emt 0:00:04]} 2. Nf3 {[%emt 0:00:05]} d6 {[%emt 0:00:02]} 3. d4 {[%emt 0:00:06]} cxd4 {[%emt 0:00:04]} 4. Nxd4 {[%emt 0:00:08]} Nf6 {[%emt 0:00:03]} 5. Nc3 {[%emt 0:00:11]} a6 {[%emt 0:00:06]} 6. f3 {[%emt 0:00:19]} e5 {[%emt 0:00:06]} 7. Nb3 {[%emt 0:00:07]} Be6 {[%emt 0:00:08]} 8. Be3 {[%emt 0:00:22]} Be7 {[%emt 0:00:11]} 9. Qd2 {[%emt 0:00:43]} O-O {[%emt 0:00:27]} 10. g4 {[%emt 0:00:29]} d5 {[%emt 0:13:12]} 11. exd5 {[%emt 0:01:54]} Nxd5 {[%emt 0:01:21]} 12. O-O-O {[%emt 0:01:37]} Nxe3 {[%emt 0:05:25]} 13. Qxe3 {[%emt 0:01:58]} Bg5 {[%emt 0:01:16]} 14. Rxd8 {[%emt 0:01:33]} Bxe3+ {[%emt 0:00:04]} 15. Rd2 {[%emt 0:00:18]} Rd8 {[%emt 0:06:30]} 16. Bd3 {[%emt 0:00:26]} Bxb3 {[%emt 0:02:21]} 17. axb3 {[%emt 0:00:25]} Bxd2+ {[%emt 0:00:08]} 18. Kxd2 {[%emt 0:00:13]} Nc6 {[%emt 0:03:01]} 19. Re1 {[%emt 0:01:59]} f6 {[%emt 0:06:48]} 20. Kc1 {[%emt 0:01:01]} b5 {[%emt 0:08:46]} 21. Be4 {[%emt 0:01:17]} Rac8 {[%emt 0:00:43]} 22. Nd5 {[%emt 0:02:08]} Kf8 {[%emt 0:07:42]} 23. Nb6 {[%emt 0:02:48]} Rc7 {[%emt 0:00:52]} 24. Nd5 {[%emt 0:00:17]} Rcd7 {[%emt 0:27:43]} 25. Nxf6 {[%emt 0:01:54]} gxf6 {[%emt 0:00:09]} 26. Bxc6 {[%emt 0:00:06]} Rd6 {[%emt 0:00:18]} 27. Be4 {[%emt 0:00:19]} h6 {[%emt 0:00:11]} 28. Bd3 {[%emt 0:00:19]} Kf7 {[%emt 0:03:40]} 29. h4 {[%emt 0:00:28]} Rh8 {[%emt 0:04:59]} 30. h5 {[%emt 0:01:28]} Rhd8 {[%emt 0:00:33]} 31. Re2 {[%emt 0:02:33]} Rd4 {[%emt 0:01:42]} 32. Rd2 {[%emt 0:01:44]} f5 {[%emt 0:05:00]} 33. Re2 {[%emt 0:03:11]} fxg4 {[%emt 0:01:17]} 34. fxg4 {[%emt 0:00:10]} Kf6 {[%emt 0:01:36]} 35. Re4 {[%emt 0:00:40]} Rxe4 {[%emt 0:00:40]} 36. Bxe4 {[%emt 0:00:04]} Rd4 {[%emt 0:00:13]} 37. Bf5 {[%emt 0:00:25]} Kg5 {[%emt 0:00:44]} 38. c3 {[%emt 0:00:15]} Rf4 {[%emt 0:00:32]} 39. Kd2 {[%emt 0:00:21]} Rf2+ {[%emt 0:00:17]} 40. Kc1 {[%emt 0:00:11]} Rf1+ {[%emt 0:00:11]} 41. Kd2 {[%emt 0:30:20]} Rf2+ {[%emt 0:01:26]} 42. Kc1 {[%emt 0:00:00]} Kf4 {[%emt 0:11:39]} 43. c4 {[%emt 0:00:00]} e4 {[%emt 0:02:03]} 44. c5 {[%emt 0:00:00]} e3 {[%emt 0:00:43]} 45. Kd1 {[%emt 0:00:00]} Rxb2 {[%emt 0:00:35]} 46. c6 {[%emt 0:00:00]} e2+ {[%emt 0:01:17]} 47. Ke1 {[%emt 0:00:00]} Ke3 {[%emt 0:01:12]} 48. c7 Rd2 0-1

[Event "Germany Countries-chT Youth 2022"]
[Site "Wiesbaden"]
[Date "2022.10.03"]
[Round "5"]
[White "Vasylenko, Nadeja"]
[Black "Roessling, Laura Marie"]
[Result "1-0"]
[ECO "C45"]
[WhiteElo "1261"]
[BlackElo "1418"]
[Annotator "NA RC COMBH"]
[PlyCount "99"]
[EventDate "2022.09.28"]
[EventType "team-tourn"]
[EventRounds "7"]
[EventCountry "GER"]
[SourceTitle "playchess.com"]
[Source "ChessBase"]
[SourceQuality "1"]
[TimeControl "40/5400+30:1800+30"]

1. e4 {[%emt 0:00:10]} e5 {[%emt 0:00:11]} 2. Nf3 {[%emt 0:00:09]} Nc6 {[%emt 0:00:14]} 3. d4 {[%emt 0:00:40]} exd4 4. Nxd4 {[%emt 0:00:38]} Bc5 {[%emt 0:00:45]} 5. Be3 {[%emt 0:00:41]} Qf6 {[%emt 0:00:30]} 6. c3 {[%emt 0:00:26]} Nge7 {[%emt 0:00:26]} 7. Bc4 {[%emt 0:00:55]} Ne5 {[%emt 0:00:28]} 8. Bb3 {[%emt 0:10:29]} Qg6 {[%emt 0:02:37]} 9. O-O {[%emt 0:00:19]} d6 {[%emt 0:01:15]} 10. Ba4+ {[%emt 0:03:38]} c6 {[%emt 0:01:53]} 11. Kh1 {[%emt 0:04:08]} Qxe4 {[%emt 0:01:37]} 12. Nd2 {[%emt 0:03:07]} Qg6 {[%emt 0:02:38]} 13. Bc2 {[%emt 0:00:18]} Qf6 {[%emt 0:01:47]} 14. Ne4 {[%emt 0:01:34]} Qh4 15. Nf3 {[%emt 0:21:31]} Nxf3 {[%emt 0:07:28]} 16. Qxf3 {[%emt 0:04:07]} Bxe3 {[%emt 0:01:21]} 17. Nxd6+ {[%emt 0:06:19]} Kd7 {[%emt 0:03:59]} 18. Nxf7 {[%emt 0:05:59]} Rf8 {[%emt 0:05:00]} 19. Ne5+ {[%emt 0:00:24]} Ke8 {[%emt 0:02:09]} 20. Qxe3 {[%emt 0:01:19]} Nf5 {[%emt 0:15:50]} 21. Bxf5 {[%emt 0:00:32]} Bxf5 {[%emt 0:02:14]} 22. Ng6+ {[%emt 0:01:10]} Qe4 {[%emt 0:00:09]} 23. Qxe4+ {[%emt 0:00:12]} Bxe4 {[%emt 0:00:29]} 24. Nxf8 {[%emt 0:00:10]} Kxf8 {[%emt 0:00:06]} 25. f3 {[%emt 0:00:12]} Bd5 {[%emt 0:00:57]} 26. Rfe1 {[%emt 0:00:30]} Kf7 {[%emt 0:01:25]} 27. Re3 {[%emt 0:00:32]} Rd8 {[%emt 0:01:50]} 28. Rd1 {[%emt 0:00:45]} Rf8 {[%emt 0:00:40]} 29. b3 {[%emt 0:00:14]} Kg6 {[%emt 0:01:17]} 30. c4 {[%emt 0:01:23]} Bf7 {[%emt 0:00:47]} 31. Rd7 {[%emt 0:01:03]} h6 {[%emt 0:00:32]} 32. Rxb7 {[%emt 0:00:37]} Rd8 {[%emt 0:00:17]} 33. h3 {[%emt 0:00:05]} Rd2 {[%emt 0:13:48]} 34. Ree7 {[%emt 0:00:24]} Bxc4 {[%emt 0:11:07]} 35. bxc4 {[%emt 0:00:44]} Rxa2 {[%emt 0:01:09]} 36. Rxg7+ {[%emt 0:00:12]} Kf5 {[%emt 0:00:37]} 37. Rxa7 {[%emt 0:00:19]} Rc2 {[%emt 0:03:38]} 38. Rg4 {[%emt 0:00:20]} h5 {[%emt 0:00:23]} 39. Re4 {[%emt 0:00:13]} Rc1+ {[%emt 0:03:27]} 40. Kh2 {[%emt 0:00:12]} c5 {[%emt 0:00:12]} 41. Ra5 {[%emt 0:30:09]} Rd1 {[%emt 0:31:04]} 42. Rxc5+ {[%emt 0:00:07]} Kg6 {[%emt 0:03:26]} 43. Rd5 {[%emt 0:00:33]} Rxd5 {[%emt 0:03:01]} 44. cxd5 {[%emt 0:00:21]} Kf6 {[%emt 0:03:14]} 45. d6 {[%emt 0:00:11]} h4 {[%emt 0:00:22]} 46. d7 {[%emt 0:00:13]} Kf5 {[%emt 0:00:10]} 47. d8=Q {[%emt 0:00:39]} Kg6 {[%emt 0:00:23]} 48. Rf4 {[%emt 0:01:05]} Kh5 {[%emt 0:00:39]} 49. Qg8 {[%emt 0:00:33]} Kh6 {[%emt 0:00:31]} 50. Rxh4# {[%emt 0:00:03]} 1-0

[Event "Germany Countries-chT Youth 2022"]
[Site "Wiesbaden"]
[Date "2022.10.03"]
[Round "5"]
[White "Schwarzfischer, Julia"]
[Black "Struebel, Katharina"]
[Result "0-1"]
[ECO "C50"]
[WhiteElo "1256"]
[BlackElo "1273"]
[Annotator "COMBH"]
[PlyCount "120"]
[EventDate "2022.09.28"]
[EventType "team-tourn"]
[EventRounds "7"]
[EventCountry "GER"]
[TimeControl "40/5400+30:1800+30"]

1. e4 {[%emt 0:00:04]} e5 {[%emt 0:00:05]} 2. Bc4 {[%emt 0:00:04]} Nc6 {[%emt 0:00:11]} 3. Nf3 {[%emt 0:00:14]} Be7 {[%emt 0:00:09]} 4. c3 {[%emt 0:00:10]} Nf6 {[%emt 0:00:13]} 5. d3 {[%emt 0:00:05]} d5 {[%emt 0:00:23]} 6. exd5 {[%emt 0:00:21]} Nxd5 {[%emt 0:00:17]} 7. Qb3 {[%emt 0:00:12]} Na5 {[%emt 0:00:45]} 8. Qa4+ {[%emt 0:01:16]} Nc6 {[%emt 0:00:42]} 9. Qb5 {[%emt 0:01:58]} Nb6 {[%emt 0:05:18]} 10. Nbd2 {[%emt 0:04:50]} a6 {[%emt 0:02:08]} 11. Qb3 {[%emt 0:00:31]} O-O {[%emt 0:01:03]} 12. Ne4 {[%emt 0:01:53]} Nxc4 {[%emt 0:02:37]} 13. dxc4 {[%emt 0:01:59]} Be6 {[%emt 0:04:47]} 14. Qc2 {[%emt 0:01:15]} Bxc4 {[%emt 0:02:50]} 15. Neg5 {[%emt 0:01:28]} Qd3 {[%emt 0:01:20]} 16. Qxd3 {[%emt 0:00:59]} Bxd3 {[%emt 0:00:24]} 17. h4 {[%emt 0:00:39]} h6 {[%emt 0:00:41]} 18. Nh3 {[%emt 0:00:40]} e4 {[%emt 0:01:10]} 19. Nd2 {[%emt 0:00:35]} Bxh4 {[%emt 0:01:29]} 20. Nf4 {[%emt 0:00:43]} Bf6 {[%emt 0:01:48]} 21. Nd5 {[%emt 0:01:26]} Be5 {[%emt 0:01:37]} 22. f4 {[%emt 0:02:57]} Bd6 {[%emt 0:03:05]} 23. b3 {[%emt 0:06:01]} Ne7 {[%emt 0:00:45]} 24. Nxe7+ {[%emt 0:01:10]} Bxe7 {[%emt 0:00:17]} 25. Bb2 {[%emt 0:00:12]} Bf6 {[%emt 0:03:06]} 26. O-O-O {[%emt 0:01:01]} b5 {[%emt 0:02:35]} 27. g4 {[%emt 0:02:09]} Rad8 {[%emt 0:03:19]} 28. Rh2 {[%emt 0:00:34]} e3 {[%emt 0:04:45]} 29. Nf3 {[%emt 0:00:44]} Be4 {[%emt 0:00:44]} 30. Nd4 {[%emt 0:05:08]} c5 {[%emt 0:00:47]} 31. Nc2 {[%emt 0:01:01]} Rxd1+ {[%emt 0:00:12]} 32. Kxd1 {[%emt 0:00:18]} Bxc2+ {[%emt 0:00:29]} 33. Kxc2 {[%emt 0:00:10]} Re8 {[%emt 0:00:28]} 34. Re2 {[%emt 0:01:00]} Kh7 {[%emt 0:00:44]} 35. Ba3 {[%emt 0:00:49]} c4 {[%emt 0:00:37]} 36. Bc5 {[%emt 0:00:46]} cxb3+ {[%emt 0:00:37]} 37. Kxb3 {[%emt 0:00:18]} Rc8 {[%emt 0:00:39]} 38. Bb4 {[%emt 0:00:14]} Rc4 {[%emt 0:01:07]} 39. Rxe3 {[%emt 0:02:45]} Rxf4 {[%emt 0:00:13]} 40. Rg3 {[%emt 0:00:17]} Bh4 {[%emt 0:00:38]} 41. Rg1 {[%emt 0:30:20]} f5 {[%emt 0:30:28]} 42. gxf5 {[%emt 0:00:51]} Rxf5 {[%emt 0:00:11]} 43. Rd1 {[%emt 0:00:25]} Rf6 {[%emt 0:00:52]} 44. Be7 {[%emt 0:00:27]} Rf4 {[%emt 0:00:09]} 45. Bd6 {[%emt 0:00:15]} Rf5 {[%emt 0:00:29]} 46. Bc7 {[%emt 0:00:58]} Bf6 {[%emt 0:01:46]} 47. Re1 {[%emt 0:01:09]} Bxc3 {[%emt 0:00:34]} 48. Kxc3 {[%emt 0:01:23]} Rc5+ {[%emt 0:00:08]} 49. Kb4 {[%emt 0:00:03]} Rxc7 {[%emt 0:00:10]} 50. Ka5 {[%emt 0:00:03]} Rc2 {[%emt 0:00:20]} 51. Ra1 {[%emt 0:00:05]} Rc6 {[%emt 0:00:29]} 52. Rd1 {[%emt 0:00:10]} g5 {[%emt 0:00:29]} 53. Rd7+ {[%emt 0:00:16]} Kg6 {[%emt 0:00:10]} 54. Ra7 {[%emt 0:00:10]} Rc2 {[%emt 0:00:17]} 55. Rxa6+ {[%emt 0:00:13]} Kh5 {[%emt 0:00:10]} 56. Kxb5 {[%emt 0:00:06]} g4 {[%emt 0:00:14]} 57. Rd6 {[%emt 0:00:29]} Rxa2 {[%emt 0:00:09]} 58. Rd5+ {[%emt 0:00:05]} Kh4 {[%emt 0:00:09]} 59. Rd6 {[%emt 0:00:14]} h5 {[%emt 0:00:09]} 60. Rd5 {[%emt 0:00:31]} g3 {[%emt 0:00:14]} 0-1

[Event "Germany Countries-chT Youth 2022"]
[Site "Wiesbaden"]
[Date "2022.10.03"]
[Round "5"]
[White "Alhassan, Jodi"]
[Black "Hoffmann, Sophia"]
[Result "0-1"]
[ECO "C54"]
[WhiteElo "1227"]
[BlackElo "1258"]
[Annotator "NA RC COMBH"]
[PlyCount "50"]
[EventDate "2022.09.28"]
[EventType "team-tourn"]
[EventRounds "7"]
[EventCountry "GER"]
[SourceTitle "playchess.com"]
[Source "ChessBase"]
[SourceQuality "1"]
[TimeControl "40/5400+30:1800+30"]

1. e4 {[%emt 0:00:05]} e5 {[%emt 0:00:04]} 2. Nf3 {[%emt 0:00:09]} Nc6 {[%emt 0:00:07]} 3. Bc4 {[%emt 0:00:17]} Bc5 {[%emt 0:00:06]} 4. c3 {[%emt 0:00:06]} Nf6 {[%emt 0:00:07]} 5. d3 {[%emt 0:00:23]} d6 {[%emt 0:00:07]} 6. b4 {[%emt 0:00:56]} Bb6 {[%emt 0:00:04]} 7. a4 {[%emt 0:00:05]} a5 {[%emt 0:00:04]} 8. b5 {[%emt 0:00:16]} Ne7 {[%emt 0:00:04]} 9. O-O {[%emt 0:02:16]} Ng6 {[%emt 0:00:57]} 10. Bb3 {[%emt 0:09:34]} O-O {[%emt 0:04:05]} 11. Nbd2 {[%emt 0:11:32]} Ba7 {[%emt 0:10:57]} 12. Nc4 {[%emt 0:16:30]} Re8 {[%emt 0:04:18]} 13. Ne3 {[%emt 0:16:13]} Nf4 {[%emt 0:08:05]} 14. Qc2 {[%emt 0:25:58]} N6h5 {[%emt 0:14:04]} 15. Qa2 {[%emt 0:02:12]} Be6 {[%emt 0:05:11]} 16. Bxe6 {[%emt 0:05:49]} Rxe6 {[%emt 0:01:12]} 17. d4 {[%emt 0:03:55]} Rg6 {[%emt 0:04:30]} 18. Kh1 {[%emt 0:01:04]} Qf6 {[%emt 0:06:34]} 19. Rg1 {[%emt 0:01:43]} Nxg2 {[%emt 0:03:43]} 20. Nxg2 {[%emt 0:00:43]} Qxf3 {[%emt 0:00:14]} 21. Bd2 {[%emt 0:00:39]} exd4 {[%emt 0:02:38]} 22. cxd4 {[%emt 0:00:20]} Bxd4 {[%emt 0:00:28]} 23. Raf1 {[%emt 0:00:23]} Be5 {[%emt 0:03:08]} 24. Qc4 {[%emt 0:00:41]} Qh3 {[%emt 0:01:32]} 25. Bf4 {[%emt 0:00:31]} Nxf4 {[%emt 0:01:46]} 0-1

[Event "Germany Countries-chT Youth 2022"]
[Site "Wiesbaden"]
[Date "2022.10.03"]
[Round "5"]
[White "Färber, Anna"]
[Black "Altmeyer, Hannah"]
[Result "1-0"]
[ECO "C50"]
[WhiteElo "1165"]
[BlackElo "728"]
[Annotator "NA RC COMBH"]
[PlyCount "113"]
[EventDate "2022.09.28"]
[EventType "team-tourn"]
[EventRounds "7"]
[EventCountry "GER"]
[SourceTitle "playchess.com"]
[Source "ChessBase"]
[SourceQuality "1"]
[TimeControl "40/5400+30:1800+30"]

1. e4 {[%emt 0:00:02]} e5 {[%emt 0:00:02]} 2. Nf3 {[%emt 0:00:08]} Nc6 {[%emt 0:00:20]} 3. Bc4 {[%emt 0:00:08]} Bc5 {[%emt 0:00:20]} 4. O-O {[%emt 0:00:11]} Nf6 {[%emt 0:01:43]} 5. d4 {[%emt 0:00:07]} Bxd4 {[%emt 0:00:52]} 6. Nxd4 {[%emt 0:00:10]} Nxd4 {[%emt 0:00:46]} 7. f4 {[%emt 0:00:11]} Nc6 {[%emt 0:00:36]} 8. Bxf7+ {[%emt 0:01:23]} Kxf7 {[%emt 0:01:02]} 9. fxe5 {[%emt 0:00:12]} Nxe5 {[%emt 0:00:28]} 10. Qd5+ {[%emt 0:00:09]} Ke8 {[%emt 0:01:32]} 11. Qxe5+ {[%emt 0:00:10]} Qe7 {[%emt 0:00:23]} 12. Qxe7+ {[%emt 0:04:57]} Kxe7 {[%emt 0:01:12]} 13. Bg5 {[%emt 0:00:36]} Rf8 {[%emt 0:00:28]} 14. e5 {[%emt 0:00:15]} d6 {[%emt 0:03:20]} 15. exf6+ {[%emt 0:00:23]} gxf6 {[%emt 0:00:46]} 16. Be3 {[%emt 0:01:17]} b6 {[%emt 0:02:47]} 17. Re1 {[%emt 0:00:29]} Kd7 {[%emt 0:00:28]} 18. Nc3 {[%emt 0:02:43]} Re8 {[%emt 0:01:15]} 19. Nd5 {[%emt 0:01:57]} Re6 {[%emt 0:01:44]} 20. Bd4 {[%emt 0:01:22]} f5 {[%emt 0:03:17]} 21. Rxe6 {[%emt 0:00:16]} Kxe6 {[%emt 0:00:28]} 22. Nxc7+ {[%emt 0:00:09]} Kd7 {[%emt 0:02:54]} 23. Nxa8 {[%emt 0:00:17]} Kc6 {[%emt 0:02:36]} 24. Nxb6 {[%emt 0:00:15]} axb6 {[%emt 0:00:26]} 25. a4 {[%emt 0:00:33]} Kd5 {[%emt 0:01:48]} 26. Bxb6 {[%emt 0:00:22]} Kc6 {[%emt 0:01:06]} 27. a5 {[%emt 0:00:46]} Kb5 {[%emt 0:00:55]} 28. Kf2 {[%emt 0:01:01]} h6 {[%emt 0:00:56]} 29. Ke3 {[%emt 0:01:04]} d5 {[%emt 0:00:15]} 30. Kd4 {[%emt 0:00:45]} Bb7 {[%emt 0:00:25]} 31. g3 {[%emt 0:00:41]} h5 {[%emt 0:04:19]} 32. h4 {[%emt 0:00:15]} Bc8 {[%emt 0:02:37]} 33. Kxd5 {[%emt 0:00:34]} Bb7+ {[%emt 0:00:42]} 34. Kd6 {[%emt 0:00:32]} Ba6 {[%emt 0:00:15]} 35. Kc7 {[%emt 0:00:34]} Kb4 {[%emt 0:00:48]} 36. Kb8 {[%emt 0:01:48]} Bc4 {[%emt 0:00:39]} 37. a6 {[%emt 0:00:17]} Kb5 {[%emt 0:00:51]} 38. a7 {[%emt 0:00:25]} Bd5 {[%emt 0:00:13]} 39. Rf1 {[%emt 0:01:27]} Be4 {[%emt 0:00:17]} 40. Rxf5+ {[%emt 0:00:15]} Bxf5 {[%emt 0:00:07]} 41. a8=Q {[%emt 0:30:08]} Kxb6 {[%emt 0:30:47]} 42. Qa7+ {[%emt 0:02:10]} Kc6 {[%emt 0:00:13]} 43. Qc7+ {[%emt 0:00:18]} Kd5 {[%emt 0:00:17]} 44. b4 {[%emt 0:00:31]} Be4 {[%emt 0:00:17]} 45. c4+ {[%emt 0:02:34]} Kd4 {[%emt 0:00:16]} 46. Qf4 {[%emt 0:00:39]} Kd3 {[%emt 0:00:32]} 47. g4 {[%emt 0:00:45]} hxg4 {[%emt 0:00:18]} 48. Qxg4 {[%emt 0:00:09]} Bh7 {[%emt 0:00:47]} 49. Qd7+ {[%emt 0:00:12]} Kxc4 {[%emt 0:00:08]} 50. Qxh7 {[%emt 0:00:07]} Kxb4 {[%emt 0:00:39]} 51. Qc2 {[%emt 0:00:33]} Kb5 {[%emt 0:00:20]} 52. Qc3 {[%emt 0:00:28]} Kb6 {[%emt 0:00:38]} 53. Qc4 {[%emt 0:00:56]} Ka5 {[%emt 0:00:10]} 54. Qb3 {[%emt 0:00:18]} Ka6 {[%emt 0:00:09]} 55. Kc7 {[%emt 0:00:14]} Ka5 {[%emt 0:00:14]} 56. Kc6 {[%emt 0:00:25]} Ka6 {[%emt 0:00:21]} 57. Qb6# 1-0

[Event "Germany Countries-chT Youth 2022"]
[Site "Wiesbaden"]
[Date "2022.10.03"]
[Round "5"]
[White "Ignatova, Gabriela"]
[Black "Chandrasekher, Ritu"]
[Result "1/2-1/2"]
[ECO "C54"]
[WhiteElo "1099"]
[BlackElo "1262"]
[Annotator "NA RC COMBH"]
[PlyCount "87"]
[EventDate "2022.09.28"]
[EventType "team-tourn"]
[EventRounds "7"]
[EventCountry "GER"]
[SourceTitle "playchess.com"]
[Source "ChessBase"]
[SourceQuality "1"]
[TimeControl "40/5400+30:1800+30"]

1. e4 {[%emt 0:00:02]} e5 {[%emt 0:00:09]} 2. Nf3 {[%emt 0:00:09]} Nc6 {[%emt 0:00:07]} 3. Bc4 {[%emt 0:00:12]} Bc5 {[%emt 0:00:10]} 4. c3 {[%emt 0:00:21]} Nf6 {[%emt 0:00:15]} 5. d4 {[%emt 0:00:43]} exd4 {[%emt 0:00:31]} 6. e5 {[%emt 0:00:42]} d5 {[%emt 0:00:52]} 7. Bb5 {[%emt 0:00:41]} Ne4 {[%emt 0:02:14]} 8. cxd4 {[%emt 0:00:43]} Bb6 {[%emt 0:01:00]} 9. Nc3 {[%emt 0:01:17]} Nxc3 {[%emt 0:01:01]} 10. bxc3 {[%emt 0:01:23]} Bd7 {[%emt 0:00:21]} 11. Ba3 {[%emt 0:09:12]} Nxe5 {[%emt 0:02:11]} 12. Bxd7+ {[%emt 0:01:41]} Nxd7 {[%emt 0:01:24]} 13. Qe2+ {[%emt 0:00:13]} Ne5 {[%emt 0:01:18]} 14. Nxe5 {[%emt 0:00:13]} Qc8 {[%emt 0:01:53]} 15. Ng6+ {[%emt 0:01:13]} Kd7 {[%emt 0:02:54]} 16. Qg4+ {[%emt 0:00:37]} Kc6 {[%emt 0:00:52]} 17. Qxc8 {[%emt 0:00:19]} Rhxc8 {[%emt 0:00:10]} 18. Ne5+ {[%emt 0:01:05]} Kb5 {[%emt 0:00:44]} 19. Rb1+ {[%emt 0:01:28]} Ka6 {[%emt 0:00:37]} 20. O-O {[%emt 0:01:36]} f6 {[%emt 0:01:16]} 21. Nd3 {[%emt 0:00:43]} Ka5 {[%emt 0:01:47]} 22. Rb3 {[%emt 0:00:31]} Re8 {[%emt 0:01:50]} 23. Rfb1 {[%emt 0:01:04]} Re2 {[%emt 0:03:16]} 24. Bc5 {[%emt 0:09:19]} Rxa2 {[%emt 0:02:57]} 25. Ra3+ {[%emt 0:02:54]} Rxa3 {[%emt 0:00:38]} 26. Bxa3 {[%emt 0:00:14]} Ka4 {[%emt 0:01:49]} 27. Bc5 {[%emt 0:00:22]} Re8 {[%emt 0:00:47]} 28. h4 {[%emt 0:00:32]} Re2 {[%emt 0:01:29]} 29. Kh2 {[%emt 0:01:38]} Rd2 {[%emt 0:02:17]} 30. Nf4 {[%emt 0:01:38]} Rxf2 {[%emt 0:02:05]} 31. Nxd5 {[%emt 0:01:07]} Bxc5 {[%emt 0:00:19]} 32. dxc5 {[%emt 0:00:49]} Rf5 {[%emt 0:00:33]} 33. Nxc7 {[%emt 0:01:08]} Rxc5 {[%emt 0:00:54]} 34. Rxb7 {[%emt 0:00:48]} a5 {[%emt 0:00:36]} 35. Ne6 {[%emt 0:00:36]} Rh5 {[%emt 0:00:43]} 36. Nxg7 {[%emt 0:00:51]} Rxh4+ {[%emt 0:00:23]} 37. Kg3 {[%emt 0:00:22]} Rh6 {[%emt 0:00:50]} 38. Nf5 {[%emt 0:01:01]} Rg6+ {[%emt 0:02:09]} 39. Kf3 {[%emt 0:00:25]} Rg5 {[%emt 0:01:22]} 40. g4 {[%emt 0:00:28]} h5 {[%emt 0:00:57]} 41. c4 {[%emt 0:30:58]} hxg4+ {[%emt 0:32:07]} 42. Kf4 {[%emt 0:01:09]} g3 {[%emt 0:01:52]} 43. Nxg3 {[%emt 0:00:32]} Rc5 {[%emt 0:00:10]} 44. Ne4 {[%emt 0:01:47]} 1/2-1/2

[Event "Germany Countries-chT Youth 2022"]
[Site "Wiesbaden"]
[Date "2022.10.03"]
[Round "6"]
[White "Lutsko, Artem"]
[Black "Petrovsky, Vadim"]
[Result "1/2-1/2"]
[ECO "B92"]
[WhiteElo "2442"]
[BlackElo "1287"]
[Annotator "TA"]
[PlyCount "62"]
[EventDate "2022.09.28"]
[EventType "team-tourn"]
[EventRounds "7"]
[EventCountry "GER"]
[SourceTitle "playchess.com"]
[Source "ChessBase"]
[SourceQuality "1"]
[TimeControl "40/5400+30:1800+30"]

{[%evp 21,49,0,0,0,9,0,0,15,7,7,0,0,0,0,0,0,5,0,0,0,0,0,0,0,0,0,0,5,6,0]} 1. e4 {[%emt 0:00:01]} c5 {[%emt 0:01:00]} 2. Nf3 {[%emt 0:00:44]} d6 {[%emt 0:00:31]} 3. d4 {[%emt 0:00:18]} cxd4 {[%emt 0:00:06]} 4. Nxd4 {[%emt 0:00:03]} Nf6 {[%emt 0:00:07]} 5. Nc3 {[%emt 0:00:29]} a6 {[%emt 0:00:23]} 6. Be2 {[%emt 0:00:57]} e5 {[%emt 0:00:19]} 7. Nb3 {[%emt 0:00:14]} Be7 {[%emt 0:00:20]} 8. Be3 {[%emt 0:02:57]} Be6 {[%emt 0:03:06]} 9. O-O {[%emt 0:00:49]} O-O {[%emt 0:00:44]} 10. Qd2 {[%emt 0:05:10] 10.Re1 is more fashionable.} Nbd7 {[%emt 0:00:33]} 11. a4 {[%emt 0:00:52][%cal Ba2a4,Ba4a5][%mdl 32]} Nb6 {[%emt 0:04:55] The position is equal.} 12. a5 {[%emt 0:02:28] B92: Sicilian Najdorf: 6 Be2.} Nc4 {[%emt 0:00:25]} 13. Bxc4 {[%emt 0:00:06]} Bxc4 {[%emt 0:00:06]} 14. Rfd1 {[%emt 0:01:19]} Rc8 {[%emt 0:02:45]} 15. Nc1 {[%emt 0:02:50]} d5 {[%emt 0:23:38]} 16. Bb6 {[%emt 0:07:29]} Qe8 {[%emt 0:03:15] [#] Strongly threatening ...d4.} 17. exd5 {[%emt 0:08:12] Hoping for d6.} Bb4 {[%emt 0:00:14]} 18. d6 {[%emt 0:01:24] And now d7 would win.} Qd7 {[%emt 0:02:38][%cal Of6d5]} 19. Nd3 {[%emt 0:02:42]} Bxd6 {[%emt 0:05:29]} 20. Nxe5 {[%emt 0:00:17]} Bxe5 {[%emt 0:00:11] A strong pair of Bishops.} 21. Qxd7 {[%emt 0:00:08]} Nxd7 {[%emt 0:00:03]} 22. Rxd7 {[%emt 0:00:05]} Bxc3 {[%emt 0:00:23]} 23. bxc3 {[%emt 0:00:06]} Bb5 {[%emt 0:00:07][%csl LRc3,LRd7]} 24. Rxb7 {[%emt 0:00:24]} Rxc3 {[%emt 0:00:10]} 25. Rc7 {[%emt 0:00:22] [#] An even fight not without its subleties.  Weighted Error Value: White=0.01 (flawless) /Black=0.00 (flawless)} {Predecessor:} Rxc7 $146 26. Bxc7 Rc8 27. Rd1 Ba4 28. Rd8+ Rxd8 29. Bxd8 Bxc2 30. Kf1 f5 31. Ke2 Kf7 {½-½ (40) Koskela,N (2204)-L'Ami,A (2364) Reykjavik 2015} 1/2-1/2